bitfinex/quotes_ETHUSD_20250622
["timestamp","ask_amount","ask_price","bid_price","bid_amount"]
[1750552489868,40.0,2307.2,2305.4,0.8747]
[1750552490083,10.55,2307.0,2306.4,3.035028]
[1750552490378,7.08073,2307.1,2305.2,0.42642683]
[1750552490379,3.03494745,2306.5,2305.2,0.42642683]
[1750552490604,50.0,2306.2,2304.8,3.03710535]
[1750552490765,50.0,2306.2,2304.5,3.03750254]
[1750552490766,10.0,2306.2,2304.9,0.44143026]
[1750552490957,0.8273,2306.3,2305.0,0.0433781]
[1750552491150,0.38253,2306.2,2304.8,3.03713988]
[1750552491465,3.8253,2306.3,2306.1,3.03537724]
[1750552491670,3.8253,2306.3,2305.8,3.03581367]
[1750552491975,0.8273,2307.1,2305.7,14.87022809]
[1750552492163,0.8273,2307.1,2306.0,3.03555941]
[1750552492363,0.8273,2307.1,2306.8,3.03446051]
[1750552492716,1.17194141,2307.5,2307.0,3.0342436]
[1750552492807,1.17194141,2307.5,2307.2,3.0338886]
[1750552493001,1.58893555,2307.5,2306.3,3.87374482]
[1750552493159,1.58893555,2307.5,2306.5,3.03490136]
[1750552493504,19.399,2308.1,2306.5,3.03490136]
[1750552493505,1.38079756,2309.3,2307.6,0.55]
[1750552493702,1.38455177,2311.3,2309.9,3.03043421]
[1750552493995,1.29352341,2311.7,2309.9,3.07371518]
[1750552494293,1.29352341,2311.7,2309.9,3.03043421]
[1750552494454,10.0,2313.1,2311.0,11.83427372]
[1750552494655,2.11832144,2313.0,2311.5,3.02833657]
[1750552494988,2.11832144,2313.0,2311.1,0.04326346]
[1750552494989,0.8505,2312.2,2311.1,0.04326346]
[1750552495289,0.8505,2312.2,2310.0,23.45128308]
[1750552495290,30.0,2311.4,2310.0,3.03030303]
[1750552495505,13.44902566,2311.8,2309.3,0.8386]
[1750552495506,40.0,2311.1,2309.3,0.8386]
[1750552495735,40.0,2311.1,2308.1,6.72075047]
[1750552495736,30.0,2310.9,2308.5,3.0321415]
[1750552495919,30.0,2309.5,2308.5,1.300661]
[1750552496122,10.0,2309.2,2308.5,1.300661]
[1750552496321,10.0,2308.7,2307.2,3.87253517]
[1750552496471,10.0,2308.8,2308.0,3.03292059]
[1750552496774,0.8505,2308.5,2307.3,0.36180063]
[1750552496970,0.8505,2308.5,2308.0,3.03291036]
[1750552497392,0.8505,2308.5,2307.3,0.36180063]
[1750552497588,10.0,2308.3,2307.3,3.3956449]
[1750552497797,10.0,2308.1,2307.3,0.36180063]
[1750552497999,30.0,2308.1,2307.3,0.36180063]
[1750552498305,10.8505,2308.5,2307.4,3.0337176]
[1750552498306,14.1185,2308.5,2307.4,3.0337176]
[1750552498511,10.0,2308.1,2307.3,0.36180063]
[1750552498677,30.0,2308.3,2307.3,0.36180063]
[1750552498876,30.0,2308.1,2307.3,0.36180063]
[1750552499077,4.0,2308.2,2307.3,0.36180063]
[1750552499395,30.0,2308.1,2306.6,0.8386]
[1750552499599,10.0,2308.1,2307.3,3.03379575]
[1750552499908,30.0,2308.0,2307.3,3.03376374]
[1750552500204,30.0,2308.0,2306.7,0.36189474]
[1750552500205,1.31934118,2308.0,2307.6,3.0334292]
[1750552500417,4.1185,2308.5,2306.7,0.36189474]
[1750552500631,4.1185,2308.5,2307.6,3.03340864]
[1750552500632,30.0,2308.3,2307.6,3.03340864]
[1750552500912,3.03281798,2308.1,2306.7,0.36189474]
[1750552501210,10.0,2308.2,2306.7,0.36189474]
[1750552501211,10.0,2308.2,2307.6,3.03342772]
[1750552501376,10.8505,2308.5,2306.7,0.36189474]
[1750552501575,10.0,2308.1,2306.7,0.78541082]
[1750552501772,10.0,2308.1,2307.2,3.03385881]
[1750552501976,40.0,2307.9,2307.2,3.03385881]
[1750552502179,3.03295092,2308.0,2307.6,3.03338375]
[1750552502180,30.0,2308.0,2307.6,3.03338375]
[1750552502374,30.0,2308.3,2307.8,3.03306306]
[1750552502575,30.0,2308.3,2307.9,3.03305074]
[1750552502800,5.39325,2308.4,2307.9,3.03305074]
[1750552502984,3.267,2308.4,2308.0,3.03281448]
[1750552503196,3.267,2308.4,2306.6,4.6556]
[1750552503197,40.0,2308.3,2306.6,0.8386]
[1750552503384,3.03289841,2308.1,2306.7,3.39648563]
[1750552503587,0.8505,2308.5,2307.7,3.0332244]
[1750552503787,0.8505,2308.5,2306.9,3.03437513]
[1750552503788,3.267,2308.4,2308.0,3.03282795]
[1750552504024,3.267,2308.4,2307.0,3.0342436]
[1750552504226,4.71995,2308.4,2308.0,3.03292241]
[1750552504431,4.71995,2308.4,2308.1,3.03278828]
[1750552504726,3.267,2308.4,2308.3,3.03253476]
[1750552504920,3.267,2308.4,2306.7,3.39641184]
[1750552505082,3.267,2308.4,2307.4,3.0337176]
[1750552505282,3.267,2308.4,2308.2,3.0326299]
[1750552505510,3.267,2308.4,2308.1,3.03277281]
[1750552505682,3.267,2308.4,2308.1,3.03276509]
[1750552506023,10.412,2308.6,2308.1,3.03276509]
[1750552506024,0.8195,2309.0,2308.1,3.03267526]
[1750552506219,0.8195,2309.0,2306.7,1.22049474]
[1750552506220,30.0,2308.9,2306.7,1.22049474]
[1750552506384,3.0324119,2308.4,2307.2,0.04333422]
[1750552506587,50.0,2308.7,2306.7,1.22049474]
[1750552506588,10.0,2308.7,2306.7,11.22049474]
[1750552506784,9.353,2308.7,2306.7,11.22049474]
[1750552506997,9.353,2308.7,2306.8,3.03450667]
[1750552507193,9.353,2308.7,2307.0,0.55]
[1750552507517,3.03229059,2308.5,2307.3,3.03375392]
[1750552507719,10.8705,2308.3,2306.7,1.22049474]
[1750552508040,10.0,2307.8,2307.0,3.03416085]
[1750552508224,30.0,2308.3,2306.8,3.03450667]
[1750552508402,0.8705,2308.7,2308.1,3.03272707]
[1750552508744,0.8705,2308.7,2307.4,3.0337176]
[1750552508888,3.267,2309.5,2307.5,20.7266952]
[1750552508889,0.8705,2309.2,2307.5,20.7266952]
[1750552509113,0.8705,2309.2,2309.1,3.03148412]
[1750552509343,0.8705,2309.2,2307.9,3.03306035]
[1750552509600,0.8705,2309.2,2309.1,3.03148412]
[1750552510205,40.0,2309.6,2308.9,3.03163002]
[1750552510382,3.03159359,2309.1,2308.3,3.03242642]
[1750552510608,3.267,2309.2,2308.6,3.03207896]
[1750552510810,16.29809523,2309.4,2307.6,0.8775]
[1750552511009,10.0,2308.9,2308.0,3.03282766]
[1750552511313,0.8705,2308.6,2307.1,0.8775]
[1750552511516,0.8705,2309.3,2307.2,0.39116762]
[1750552511748,3.0320959,2308.7,2308.0,3.03289603]
[1750552512063,3.0320959,2308.7,2307.2,3.03384975]
[1750552512064,10.0,2308.7,2307.2,3.03384975]
[1750552512268,10.0,2308.7,2307.6,3.03335486]
[1750552512269,30.0,2308.6,2307.6,3.03335486]
[1750552512563,3.0324428,2308.4,2307.7,3.03329311]
[1750552512712,0.8705,2308.7,2307.3,3.07713737]
[1750552512923,0.8705,2308.7,2307.4,0.30771374]
[1750552512924,30.0,2308.6,2307.4,0.30771374]
[1750552513137,33.03216039,2308.6,2307.9,3.03297007]
[1750552513311,4.1365,2308.7,2307.8,3.03317337]
[1750552513312,3.03227532,2308.5,2307.8,3.03317337]
[1750552513513,3.03227532,2308.5,2306.9,3.03427198]
[1750552513514,1.29332647,2308.7,2307.3,0.04333137]
[1750552513817,10.0,2308.5,2307.8,3.0330751]
[1750552514132,10.0,2308.5,2307.5,3.03355949]
[1750552514320,12.65185165,2308.5,2308.0,3.03291522]
[1750552514814,40.0,2308.2,2307.4,3.03361699]
[1750552515019,3.03253476,2308.3,2307.4,3.03361699]
[1750552515251,30.0,2308.2,2307.5,3.03353892]
[1750552515411,10.0,2308.2,2307.3,3.0337513]
[1750552515618,30.0,2308.0,2307.6,3.03343897]
[1750552515819,30.0,2308.0,2306.9,3.03432532]
[1750552516020,2.65185165,2308.5,2308.0,3.03292457]
[1750552516343,10.0,2308.4,2307.8,3.03317709]
[1750552516554,10.0,2308.4,2307.8,3.03317054]
[1750552516861,30.0,2308.3,2307.8,3.03310126]
[1750552517055,30.0,2308.2,2307.6,3.03336937]
[1750552517226,30.0,2308.3,2307.6,3.03342096]
[1750552517554,30.0,2308.1,2307.4,3.03362665]
[1750552517861,1.0814,2308.0,2307.4,3.03369498]
[1750552518045,3.03379547,2307.4,2306.7,3.03454354]
[1750552518255,1.0814,2307.2,2306.2,3.03529615]
[1750552518461,1.0814,2307.2,2306.8,3.03448316]
[1750552518655,10.0,2306.9,2305.6,1.0158]
[1750552518854,30.0,2306.8,2306.2,3.03517334]
[1750552519055,30.0,2306.8,2306.0,3.03543709]
[1750552519295,30.0,2306.8,2305.7,3.03595437]
[1750552519586,3.266,2306.9,2305.8,0.40517544]
[1750552519736,3.266,2306.9,2306.8,3.03450667]
[1750552519938,1.0814,2307.2,2307.1,3.03411208]
[1750552520386,1.0814,2307.2,2306.4,3.03503295]
[1750552520387,1.0814,2307.2,2305.8,3.03570637]
[1750552520543,1.0814,2307.2,2305.8,12.31870637]
[1750552520876,1.0814,2307.2,2306.5,3.03477243]
[1750552521185,1.0814,2307.2,2307.0,3.03416244]
[1750552521345,1.0814,2307.2,2306.6,3.03471596]
[1750552521534,1.0814,2307.2,2306.5,3.03482626]
[1750552521535,30.0,2307.1,2306.5,3.03482626]
[1750552521893,33.0342648,2307.0,2306.4,3.03499224]
[1750552522082,3.267,2306.9,2306.5,3.03487807]
[1750552522975,3.267,2306.9,2306.4,3.03500714]
[1750552523560,60.3108,2306.8,2305.0,3.03676519]
[1750552523768,31.0448,2306.2,2304.8,4.09986163]
[1750552524069,10.0,2305.9,2304.8,3.03704998]
[1750552524366,10.0,2305.9,2304.3,4.10054851]
[1750552524367,1.0448,2306.2,2305.2,1.0628]
[1750552524670,1.0448,2306.2,2305.3,1.28152619]
[1750552524887,1.0448,2306.2,2305.7,3.0359426]
[1750552525096,1.0448,2306.2,2305.0,3.03687635]
[1750552525384,30.0,2306.1,2304.8,1.0628]
[1750552525720,30.0,2306.0,2305.0,3.03687635]
[1750552525836,30.0,2306.0,2305.2,3.03661287]
[1750552526190,30.0,2306.0,2305.5,3.03619644]
[1750552526393,1.0448,2306.2,2305.0,0.04337559]
[1750552526684,30.0,2306.7,2305.2,3.03661287]
[1750552526833,30.0,2307.8,2307.3,3.03381807]
[1750552527028,30.0,2307.8,2306.4,15.85022629]
[1750552527279,39.259,2307.7,2306.4,1.0628]
[1750552527434,39.259,2307.7,2305.9,3.03565359]
[1750552527435,30.0,2307.3,2306.5,3.03478981]
[1750552527781,1.0995,2307.1,2306.1,0.04335565]
[1750552527947,3.222,2307.2,2306.4,3.03497837]
[1750552528152,3.222,2307.2,2306.2,3.03529615]
[1750552528153,1.0995,2307.5,2306.5,0.04334852]
[1750552528365,0.22656667,2309.9,2307.5,1.0244]
[1750552528585,0.22656667,2309.9,2309.5,25.80782094]
[1750552528868,0.31835062,2311.6,2309.6,13.02428002]
[1750552528869,30.0,2311.5,2309.6,13.02428002]
[1750552529032,30.0,2311.5,2310.1,11.75246186]
[1750552529232,3.02857211,2311.4,2310.5,3.02962389]
[1750552529433,30.0,2311.0,2309.3,11.75246186]
[1750552529716,40.0,2310.6,2309.1,11.75246186]
[1750552529890,30.0,2310.6,2309.8,3.03044815]
[1750552530034,30.0,2310.6,2309.6,3.03075152]
[1750552530364,30.0,2310.6,2309.8,3.03054556]
[1750552530365,30.0,2310.5,2309.8,3.03054556]
[1750552530561,30.0,2310.4,2309.6,3.03070068]
[1750552530876,2.31934118,2310.3,2309.8,3.03045839]
[1750552531079,10.0,2310.6,2309.9,3.03040965]
[1750552531080,10.0,2310.5,2309.9,3.03040965]
[1750552531281,1.0995,2310.7,2310.0,0.04328915]
[1750552531434,1.0995,2310.7,2309.6,3.03073223]
[1750552531634,3.428,2311.1,2309.8,3.03056541]
[1750552531837,3.428,2311.1,2310.1,3.03011688]
[1750552532064,3.428,2311.1,2309.8,3.03056541]
[1750552532234,3.428,2311.1,2310.6,3.0294022]
[1750552532715,3.428,2311.1,2310.6,3.02948936]
[1750552532873,3.428,2311.1,2310.2,3.03004068]
[1750552533195,3.428,2311.1,2310.1,1.0271]
[1750552533370,0.75561088,2311.1,2310.4,3.02964775]
[1750552533580,0.75561088,2311.1,2309.6,12.77956186]
[1750552533775,30.0,2310.8,2309.7,0.40470827]
[1750552533957,13.02939056,2310.7,2309.9,3.03042695]
[1750552534284,3.02952769,2310.6,2309.9,3.03042695]
[1750552534484,3.02952769,2310.6,2309.7,0.36142469]
[1750552534485,13.02941133,2310.7,2309.7,3.39210163]
[1750552534688,1.0995,2311.3,2309.2,0.43991168]
[1750552534841,3.02940616,2310.7,2309.9,3.03031785]
[1750552535045,3.02940616,2310.7,2309.8,3.03056541]
[1750552535237,3.02884668,2311.2,2309.9,1.0271]
[1750552535438,30.0,2311.5,2309.9,4.05744933]
[1750552535676,3.02883752,2311.2,2310.4,3.02968038]
[1750552535891,3.02883752,2311.2,2309.3,4.03099517]
[1750552535892,31.0471,2311.0,2309.3,0.44984603]
[1750552536093,31.0471,2311.0,2309.9,3.03041459]
[1750552536094,3.02939418,2310.7,2309.9,3.03041459]
[1750552536298,3.02939418,2310.7,2309.7,3.03068581]
[1750552536299,3.02975094,2310.5,2309.7,3.03068581]
[1750552536443,3.426,2310.6,2309.4,0.04329254]
[1750552536640,30.0,2311.0,2309.5,10.0]
[1750552536854,30.0,2311.0,2309.4,12.1139335]
[1750552536855,30.0,2311.0,2309.6,5.24217894]
[1750552537173,30.0,2311.0,2309.7,0.04328197]
[1750552537344,10.0,2311.5,2309.7,3.03069271]
[1750552537551,10.0,2311.5,2310.4,3.02972731]
[1750552537552,10.0,2311.1,2310.4,3.02972731]
[1750552537749,30.0,2311.0,2310.5,3.02963352]
[1750552537989,10.0,2311.1,2310.6,3.02949527]
[1750552538297,30.0,2311.5,2310.8,3.0292292]
[1750552538480,30.0,2311.5,2310.4,3.02977839]
[1750552538687,4.79045062,2311.6,2310.5,0.04327154]
[1750552539071,4.79045062,2311.6,2311.3,3.02853547]
[1750552539272,0.31835062,2311.6,2311.5,3.02833657]
[1750552539477,0.31835062,2311.6,2310.9,0.42648485]
[1750552539645,0.31835062,2311.6,2311.5,3.02833657]
[1750552539989,0.31835062,2311.6,2310.3,9.451]
[1750552540285,30.0,2311.5,2310.2,1.0565]
[1750552540448,9.449,2311.5,2310.8,3.02917217]
[1750552540650,9.449,2311.5,2310.9,3.02906956]
[1750552540860,1.33845062,2311.6,2310.4,0.0432753]
[1750552541088,1.33845062,2311.6,2311.2,3.02868145]
[1750552541258,1.33845062,2311.6,2311.3,3.02858292]
[1750552541458,0.31835062,2311.6,2311.4,3.02846759]
[1750552541672,0.31835062,2311.6,2311.3,3.02856431]
[1750552541874,0.31835062,2311.6,2311.0,3.02890557]
[1750552542092,0.31835062,2311.6,2311.1,3.02884601]
[1750552542279,3.02870837,2311.3,2310.6,3.02947202]
[1750552542466,3.02862847,2311.3,2310.7,0.36126827]
[1750552542795,3.02896204,2311.1,2310.7,0.36126827]
[1750552542957,10.0,2311.1,2310.7,0.36126827]
[1750552543155,3.02927776,2310.8,2310.1,3.03014771]
[1750552543392,3.02939845,2310.7,2310.0,3.03026658]
[1750552543590,10.0,2310.8,2309.7,1.0329]
[1750552543795,30.0,2310.4,2309.8,0.36140904]
[1750552544099,43.03043421,2309.9,2309.8,0.36140904]
[1750552544258,40.0,2309.9,2309.2,3.03129364]
[1750552544452,40.0,2309.9,2309.3,0.36148729]
[1750552544453,30.0,2309.8,2309.3,0.36148729]
[1750552544666,17.01516274,2309.9,2309.3,0.36148729]
[1750552544878,10.0,2309.9,2309.3,0.36148729]
[1750552545287,10.0,2309.9,2309.4,3.03100012]
[1750552545495,10.0,2309.9,2309.4,0.36147164]
[1750552545850,13.03047285,2309.9,2309.4,0.36147164]
[1750552545972,10.0,2309.9,2309.4,3.03108994]
[1750552546172,4.14412994,2310.3,2309.4,3.03108994]
[1750552546364,10.0,2310.1,2308.7,3.03200935]
[1750552546688,22.698,2310.1,2309.7,3.03067949]
[1750552546890,12.698,2310.1,2309.6,3.03079837]
[1750552547293,1.1142,2310.3,2309.7,0.04329937]
[1750552547495,3.325,2310.7,2310.5,3.029519]
[1750552547805,10.71635062,2311.6,2310.4,0.0432832]
[1750552547806,1.0228,2311.3,2310.4,0.0432832]
[1750552547971,10.71635062,2311.6,2310.7,3.02938503]
[1750552548296,0.31835062,2311.6,2311.5,3.02833657]
[1750552548706,0.31835062,2311.6,2311.5,3.5139714]
[1750552549506,0.31835062,2311.6,2311.5,3.47071711]
[1750552550174,0.31835062,2311.6,2311.5,3.02833657]
[1750552551309,0.31835062,2311.6,2311.5,3.94119058]
[1750552551602,0.31835062,2311.6,2311.5,3.02833657]
[1750552551760,0.31835062,2311.6,2310.8,4.14034789]
[1750552551761,0.31835062,2311.6,2310.9,3.02912285]
[1750552551966,0.31835062,2311.6,2311.0,3.02886638]
[1750552552165,0.31835062,2311.6,2310.3,12.86366186]
[1750552552442,0.31835062,2311.6,2311.5,3.02833657]
[1750552552600,0.31835062,2311.6,2310.1,3.03010749]
[1750552552816,0.31835062,2311.6,2310.6,3.02940994]
[1750552553107,0.31835062,2311.6,2310.5,3.02964726]
[1750552553273,0.31835062,2311.6,2311.2,3.02864097]
[1750552553736,0.31835062,2311.6,2310.5,3.02959233]
[1750552554048,0.31835062,2311.6,2310.4,0.42503625]
[1750552554199,0.31835062,2311.6,2311.3,3.0285807]
[1750552554400,0.31835062,2311.6,2310.9,3.02902587]
[1750552554645,0.31835062,2311.6,2311.2,3.02861145]
[1750552554850,31.0873,2311.5,2309.4,1.0756]
[1750552555005,30.0,2311.1,2310.2,3.03003534]
[1750552555339,13.0291551,2310.9,2310.2,3.02995412]
[1750552555631,13.0291551,2310.9,2309.4,1.0756]
[1750552555632,4.11668636,2310.7,2309.8,3.03045243]
[1750552555844,30.0,2310.6,2309.5,3.03094138]
[1750552556139,1.0873,2310.7,2310.1,3.03015542]
[1750552556446,1.0873,2310.7,2309.6,3.03082784]
[1750552556447,11.0873,2310.7,2309.6,3.03082784]
[1750552556601,11.0873,2310.7,2309.7,0.0432917]
[1750552556602,1.41166473,2310.6,2309.7,0.0432917]
[1750552556799,1.0873,2310.7,2309.6,3.03082784]
[1750552557043,1.0873,2310.7,2309.7,0.04328604]
[1750552557211,1.0873,2310.7,2309.4,4.1066026]
[1750552557212,1.1134227,2310.7,2309.4,1.0756]
[1750552557735,1.1134227,2310.7,2310.2,3.02991189]
[1750552558037,1.1134227,2310.7,2309.8,0.04328669]
[1750552558038,0.0261227,2310.7,2309.8,0.04328669]
[1750552558198,0.0261227,2310.7,2310.6,3.02951614]
[1750552560044,0.0261227,2310.7,2310.1,1.0452]
[1750552560214,0.0261227,2310.7,2309.7,3.03069662]
[1750552560399,0.0261227,2310.7,2310.6,3.02951614]
[1750552560601,0.0261227,2310.7,2309.7,3.03069662]
[1750552560800,0.0261227,2310.7,2309.8,1.33958966]
[1750552561030,0.0261227,2310.7,2310.6,3.02951614]
[1750552561399,0.0261227,2310.7,2310.6,3.07278832]
[1750552561609,0.0261227,2310.7,2310.6,4.11798762]
[1750552561848,0.31835062,2311.6,2310.7,0.55]
[1750552562048,0.31835062,2311.6,2311.5,4.07353657]
[1750552562348,0.31835062,2311.6,2311.5,4.9014607]
[1750552562509,0.31835062,2311.6,2311.5,4.07353657]
[1750552562710,0.31835062,2311.6,2310.8,2.60616577]
[1750552563043,3.02916585,2310.9,2309.7,4.07580393]
[1750552563347,30.0,2310.7,2309.3,4.33021165]
[1750552563549,0.30291659,2310.8,2309.4,0.43520513]
[1750552563706,3.324,2311.1,2310.6,4.32775416]
[1750552563896,1.081,2311.2,2309.8,1.0452]
[1750552563897,1.081,2311.2,2310.7,0.0432761]
[1750552564101,1.39935062,2311.6,2311.1,4.32693087]
[1750552564334,1.39935062,2311.6,2311.4,4.32624635]
[1750552564512,1.39935062,2311.6,2310.7,4.3276929]
[1750552564844,0.31835062,2311.6,2311.4,4.32633816]
[1750552565023,0.31835062,2311.6,2311.5,4.36945812]
[1750552565230,0.31835062,2311.6,2311.5,4.36944687]
[1750552565542,0.31835062,2311.6,2311.5,4.32619511]
[1750552566230,0.31835062,2311.6,2311.5,4.36944509]
[1750552566433,0.31835062,2311.6,2311.5,4.32619511]
[1750552566600,0.31835062,2311.6,2311.5,5.29597104]
[1750552566802,0.31835062,2311.6,2311.5,5.33922046]
[1750552567003,0.31835062,2311.6,2311.5,4.32619511]
[1750552569018,0.31835062,2311.6,2311.5,4.36944251]
[1750552569532,0.31835062,2311.6,2311.5,4.32619511]
[1750552569707,0.31835062,2311.6,2311.5,4.36944147]
[1750552569906,0.31835062,2311.6,2311.5,4.32619511]
[1750552570248,0.31835062,2311.6,2311.5,4.36944933]
[1750552570412,0.31835062,2311.6,2311.5,5.29597104]
[1750552571153,0.31835062,2311.6,2311.5,15.33921725]
[1750552571469,0.31835062,2311.6,2311.5,4.32619511]
[1750552571642,0.31835062,2311.6,2310.9,5.365834]
[1750552571961,0.31835062,2311.6,2311.4,4.32619549]
[1750552572629,0.31835062,2311.6,2311.5,4.32619511]
[1750552572827,0.31835062,2311.6,2310.8,0.04326247]
[1750552572828,1.1437,2311.5,2310.8,0.04326247]
[1750552573176,1.1437,2311.5,2310.4,9.318]
[1750552573234,1.14620506,2311.4,2310.5,0.36129954]
[1750552573513,5.47261163,2311.4,2310.8,4.32735021]
[1750552573707,5.47261163,2311.4,2310.5,0.36129954]
[1750552573708,1.14620506,2311.4,2310.5,0.36129954]
[1750552573910,1.14620506,2311.4,2310.6,4.3278802]
[1750552574137,1.1437,2311.5,2310.5,0.36129954]
[1750552574346,1.1437,2311.5,2310.6,0.04327042]
[1750552574552,4.32686252,2311.2,2309.7,4.32938283]
[1750552574848,30.0,2311.2,2310.0,4.32900432]
[1750552575045,3.323,2311.1,2309.8,14.01369128]
[1750552575349,0.3323,2311.0,2310.6,4.32771601]
[1750552575554,4.32682272,2311.2,2310.0,4.32900432]
[1750552575719,30.0,2311.3,2310.1,4.76161928]
[1750552575919,1.1437,2311.4,2310.2,4.32862955]
[1750552576152,0.31835062,2311.6,2311.5,4.32619511]
[1750552578944,0.31835062,2311.6,2310.9,9.322]
[1750552578945,0.31835062,2311.6,2310.8,9.283]
[1750552579180,0.31835062,2311.6,2311.5,4.32619511]
[1750552580573,0.31835062,2311.6,2311.5,4.36945446]
[1750552580740,0.31835062,2311.6,2311.5,4.32619511]
[1750552581080,0.31835062,2311.6,2311.5,4.36945167]
[1750552581297,1.1378,2314.5,2312.3,1.1328]
[1750552581598,0.01084,2314.1,2314.0,4.32152117]
[1750552581978,0.01084,2314.1,2314.0,4.36473373]
[1750552582303,0.01084,2314.1,2314.0,4.32152117]
[1750552582448,1.14864,2314.1,2312.9,1.1328]
[1750552582642,1.14864,2314.1,2312.5,1.1378]
[1750552582643,4.32227847,2313.6,2312.5,1.1378]
[1750552582843,0.43222785,2313.5,2312.5,1.1378]
[1750552583043,1.0752,2313.8,2313.5,4.32244792]
[1750552583245,4.3542,2313.8,2312.5,0.4296858]
[1750552583603,4.3542,2313.8,2312.4,9.36]
[1750552583604,30.0,2313.6,2312.4,9.36]
[1750552583784,3.279,2313.6,2312.6,4.36726729]
[1750552584082,4.32258826,2313.5,2312.3,4.75266885]
[1750552584289,1.0752,2313.3,2312.2,4.3247103]
[1750552584489,1.08604,2314.1,2314.0,4.32152117]
[1750552584652,0.01084,2314.1,2314.0,4.32152117]
[1750552584854,0.01084,2314.1,2314.0,4.36473378]
[1750552585289,0.01084,2314.1,2314.0,4.32152117]
[1750552586200,0.01084,2314.1,2314.0,4.36473259]
[1750552587165,0.01084,2314.1,2314.0,4.32152117]
[1750552587369,0.01084,2314.1,2314.0,16.06272495]
[1750552587573,0.01084,2314.1,2314.0,16.01952117]
[1750552587768,0.01084,2314.1,2314.0,18.05364331]
[1750552588070,0.074,2314.9,2314.8,4.32002764]
[1750552588395,0.074,2314.9,2314.8,13.70002764]
[1750552588762,0.074,2314.9,2314.8,13.69102764]
[1750552589566,10.387,2315.9,2314.8,13.69102764]
[1750552589567,1.856822,2316.0,2315.9,5.43747573]
[1750552589764,1.856822,2316.0,2315.7,4.31824215]
[1750552589998,1.856822,2316.0,2315.9,4.31797573]
[1750552590503,1.856822,2316.0,2314.8,2.92062322]
[1750552590708,1.856822,2316.0,2315.8,4.31813279]
[1750552590860,1.856822,2316.0,2315.4,9.522]
[1750552591061,1.856822,2316.0,2315.9,4.31797573]
[1750552591917,1.856822,2316.0,2314.9,4.61182674]
[1750552592064,1.856822,2316.0,2315.1,4.31946784]
[1750552592065,1.1115,2315.9,2315.1,4.31946784]
[1750552592268,1.1115,2315.9,2315.0,9.507]
[1750552592637,1.856822,2316.0,2315.1,9.55118299]
[1750552592816,1.856822,2316.0,2315.9,4.31797573]
[1750552594509,1.856822,2316.0,2315.7,4.31822974]
[1750552594657,1.856822,2316.0,2315.7,4.31832004]
[1750552595293,1.856822,2316.0,2315.7,4.31833612]
[1750552595497,1.856822,2316.0,2315.6,0.04318163]
[1750552595698,1.856822,2316.0,2315.9,4.31797573]
[1750552595898,1.856822,2316.0,2315.6,0.04317901]
[1750552596078,30.0,2315.5,2314.7,4.32016287]
[1750552596286,7.42974174,2315.4,2314.7,4.32016287]
[1750552596595,4.31941574,2315.2,2314.4,4.32076791]
[1750552596798,1.1076,2315.0,2313.9,4.32170793]
[1750552596977,1.1076,2315.0,2313.7,0.44016351]
[1750552596978,4.32017135,2314.8,2313.7,0.44016351]
[1750552597175,4.31986509,2314.9,2314.3,4.32084755]
[1750552597369,4.31986509,2314.9,2313.7,0.44016351]
[1750552597370,4.4946,2315.0,2313.7,0.44016351]
[1750552597672,4.4946,2315.0,2314.2,4.3210822]
[1750552597673,4.32005338,2314.8,2314.2,4.3210822]
[1750552597918,4.32042124,2314.6,2314.0,4.32140174]
[1750552598085,4.32042124,2314.6,2313.0,4.32338953]
[1750552598086,4.32058759,2314.5,2313.0,4.32338953]
[1750552598297,44.32084014,2314.4,2313.8,4.32175533]
[1750552598621,11.0509,2314.4,2313.1,4.32320262]
[1750552598806,4.39434887,2314.3,2313.2,0.47554483]
[1750552599011,11.0509,2314.4,2313.3,4.32282885]
[1750552599212,5.37168178,2314.4,2313.7,4.32201703]
[1750552599375,5.37168178,2314.4,2313.2,0.43232026]
[1750552599376,1.0509,2314.4,2313.2,0.43232026]
[1750552599711,5.37169029,2314.4,2313.8,4.32179109]
[1750552599874,30.0,2314.3,2313.3,4.32282062]
[1750552600204,1.0509,2313.8,2313.1,4.32319272]
[1750552600407,1.0509,2313.8,2313.1,4.32306723]
[1750552600708,1.0509,2313.8,2312.7,0.04323178]
[1750552601008,4.32219895,2313.7,2313.1,4.32311019]
[1750552601209,0.96949506,2313.7,2313.0,4.32335633]
[1750552601509,4.32257153,2313.5,2312.9,4.32354839]
[1750552601812,3.388,2313.4,2312.9,4.32351736]
[1750552601976,3.388,2313.4,2312.1,1.0812]
[1750552601977,34.32333053,2313.1,2312.5,4.32432207]
[1750552602176,1.0509,2313.3,2312.3,4.32469835]
[1750552602392,4.32384383,2312.8,2311.3,4.32640588]
[1750552602593,4.32384383,2312.8,2311.8,4.32550507]
[1750552602594,1.0509,2312.6,2311.8,4.32550507]
[1750552602815,1.0509,2312.6,2312.1,4.32496098]
[1750552603007,1.0509,2312.6,2312.2,4.32487632]
[1750552603188,4.3595,2313.6,2313.1,4.32307589]
[1750552603390,10.0,2313.5,2313.1,4.32307589]
[1750552603637,0.9715,2313.6,2313.1,4.32318869]
[1750552603813,10.0,2313.5,2313.1,4.32318869]
[1750552604126,10.0,2313.5,2312.2,9.85548763]
[1750552604305,0.9715,2313.6,2312.5,4.32432432]
[1750552604504,0.9715,2313.6,2313.3,4.32274584]
[1750552604826,0.9715,2313.6,2312.6,4.32400126]
[1750552605027,0.9715,2313.6,2313.1,4.32307424]
[1750552605226,0.9715,2313.6,2312.4,0.04323019]
[1750552605529,0.9715,2313.6,2313.4,4.32248011]
[1750552605826,0.9715,2313.6,2312.4,0.62181688]
[1750552605827,0.9715,2313.6,2313.1,4.32316277]
[1750552606028,4.32255517,2313.5,2312.8,4.32359339]
[1750552606190,5.29377345,2313.6,2312.8,4.32363324]
[1750552606391,4.32264707,2313.4,2312.8,4.32363324]
[1750552606653,34.32311787,2313.2,2312.5,4.3241518]
[1750552606804,0.96164205,2313.4,2312.1,4.32507244]
[1750552607146,15.2937877,2313.6,2313.0,4.32327654]
[1750552607303,4.32245695,2313.5,2312.8,4.32358554]
[1750552607640,1.0659,2313.5,2312.3,4.32469835]
[1750552607938,1.0659,2312.7,2311.4,5.37299892]
[1750552608147,1.0659,2312.7,2311.8,4.32559524]